Workbook

Sheet Sheet1
A1: EJERCICICIO FISCAL 2024
A2: UNIDAD OPERATIVA DE CONTRATACIONES
A3: DETALLES DE LA EJECUCION PACs DE ADM. DE JUSTICIA DEL INTERIOR DEL PAIS AL 31/05/2024
B4: CIRCUNSCRIPCION JUD. | C4: PAC PROGRAMADO | E4: PACS C/LLAMADOS EN EJECUCION (PUBLICADOS) | G4: % (CANTIDAD) | H4: PAC EN PROCESO DE ELABORACION | J4: % (CANTIDAD) | K4: PAC CANCELADOS Y/O DESIERTOS | M4: % (CANTIDAD) | N4: PAC ADJUDICADOS | P4: % (CANTIDAD)
C5: CANT. | D5: MONTO | E5: CANT. | F5: MONTO | H5: CANT. | I5: MONTO | K5: CANT. | L5: MONTO | N5: CANT. | O5: MONTO
A6: ADM. JUST.DPTO | B6: GUAIRA | C6: 21 | D6: 1531981354 | E6: 8 | F6: 1263325782 | G6: =+E6/C6 -> 0.380952381 | H6: =+C6-E6 -> 13 | I6: =+D6-F6 -> 268655572 | J6: =+H6/C6 -> 0.619047619 | K6: 0 | L6: 0 | M6: =+K6/C6 -> 0 | N6: 3 | O6: 69727782 | P6: =+N6/C6 -> 0.1428571429
B7: ITAPUA | C7: 25 | D7: 4945584048 | E7: 15 | F7: 887165000 | G7: 0.6 | H7: 10 | I7: =+D7-F7 -> 4058419048 | J7: 0.4 | K7: 1 | L7: 1500000 | M7: 0.04 | N7: 11 | O7: 307736825 | P7: 0.44
B8: CONCEPCION | C8: 28 | D8: 571438350 | E8: 17 | F8: 341225000 | G8: 0.6071428571 | H8: 11 | I8: 230213350 | J8: 0.3928571429 | K8: 1 | L8: 6803000 | M8: 0.03571428571 | N8: 10 | O8: 82875927 | P8: 0.3571428571
B9: AMAMBAY | C9: 18 | D9: 973650048 | E9: 13 | F9: 329150048 | G9: 0.7222222222 | H9: 5 | I9: 644500000 | J9: 0.2777777778 | K9: 0 | L9: 0 | M9: 0 | N9: 5 | O9: 118074570 | P9: 0.2777777778
B10: ALTO PARANA | C10: 23 | D10: 8760455552 | E10: 5 | F10: 791603966 | G10: 0.2173913043 | H10: 18 | I10: 7968851586 | J10: 0.7826086957 | K10: 0 | L10: 0 | M10: 0 | N10: 5 | O10: 791603966 | P10: 0.2173913043
B11: CAAGUAZU | C11: 22 | D11: 3591250045 | E11: 6 | F11: 453805000 | G11: 0.2727272727 | H11: =+C11-E11 -> 16 | I11: 3137445045 | J11: 0.7272727273 | K11: 0 | L11: 0 | M11: 0 | N11: 4 | O11: 126571690 | P11: 0.1818181818
B12: ÑEEMBUCU | C12: 14 | D12: 3270314500 | E12: 4 | F12: 374548000 | G12: 0.2857142857 | H12: 10 | I12: 2895766500 | J12: 0.7142857143 | K12: 0 | L12: 0 | M12: 0 | N12: 2 | O12: 184548000 | P12: 0.1428571429
B13: MISIONES | C13: 13 | D13: 933396000 | E13: 4 | F13: 235000000 | G13: 0.3076923077 | H13: 9 | I13: 698396000 | J13: 0.6923076923 | K13: 1 | L13: 120000000 | M13: 0.07692307692 | N13: 0 | O13: 0 | P13: 0
B14: PARAGUARI | C14: 11 | D14: 770064758 | E14: 3 | F14: 353749438 | G14: 0.2727272727 | H14: 8 | I14: =D14-F14 -> 416315320 | J14: 0.7272727273 | K14: 0 | L14: 0 | M14: 0 | N14: 0 | O14: 0 | P14: 0
B15: CAAZAPA | C15: 13 | D15: 2579971337 | E15: 5 | F15: 439101240 | G15: 0.3846153846 | H15: =+C15-E15 -> 8 | I15: =+D15-F15 -> 2140870097 | J15: 0.6153846154 | K15: 0 | L15: 0 | M15: 0 | N15: 4 | O15: 416747400 | P15: 0.3076923077
A16: ADM. JUST.DPTO | B16: SAN PEDRO | C16: 14 | D16: 1464885000 | E16: 2 | F16: 144655000 | G16: 0.1428571429 | H16: =C16-E16 -> 12 | I16: =D16-F16 -> 1320230000 | J16: 0.8571428571 | K16: 0 | L16: 0 | M16: 0 | N16: 1 | O16: 6000000 | P16: 0.07142857143
A17: ADM. JUST.DPTO | B17: CORDILLERA | C17: 21 | D17: 2668340000 | E17: 21 | F17: 2668340000 | G17: 1 | H17: =+C17-E17 -> 0 | I17: =+D17-F17 -> 0 | J17: 0 | K17: 0 | L17: 0 | M17: 0 | N17: 7 | O17: 513030955 | P17: 0.3333333333
A18: ADM. JUST.DPTO | B18: CANINDEYU | C18: 16 | D18: 595418286 | E18: 2 | F18: 159920000 | G18: 0.125 | H18: =+C18-E18 -> 14 | I18: =+D18-F18 -> 435498286 | J18: 0.875 | K18: 0 | L18: 0 | M18: 0 | N18: 3 | O18: 44428700 | P18: 0.1875
A19: ADM. JUST.DPTO | B19: CENTRAL | C19: 31 | D19: 12763064000 | E19: 5 | F19: 2156000000 | G19: 0.1612903226 | H19: 26 | I19: =D19-F19 -> 10607064000 | J19: 0.8387096774 | K19: 0 | L19: 0 | M19: 0 | N19: 0 | O19: 0 | P19: 0
A20: ADM. JUST.DPTO | B20: ALTO PARAGUAY | C20: 25 | D20: 1142772246 | E20: 8 | F20: 281490246 | G20: 0.32 | H20: =C20-E20 -> 17 | I20: =D20-F20 -> 861282000 | J20: 0.68 | K20: 2 | L20: 24863000 | M20: 0.08 | N20: 5 | O20: 43024868 | P20: 0.2
A21: TOTALES | B21: TOTALES | C21: =SUM(C6:C20) -> 295 | D21: =SUM(D6:D20) -> 46562585524 | E21: =SUM(E6:E20) -> 118 | F21: =SUM(F6:F20) -> 10879078720 | G21: =+F21/D21 -> 0.2336442145 | H21: =SUM(H6:H20) -> 177 | I21: =SUM(I6:I20) -> 35683506804 | J21: =+I21/D21 -> 0.7663557855 | K21: =SUM(K6:K20) -> 5 | L21: =SUM(L6:L20) -> 153166000 | M21: =+L21/D21 -> 0.003289465099 | N21: =SUM(N6:N20) -> 60 | O21: =SUM(O6:O20) -> 2704370683 | P21: =+O21/D21 -> 0.05808033752
T49: =+E4 -> PACS C/LLAMADOS EN EJECUCION (PUBLICADOS) | U49: =+F21 -> 10879078720
T50: =+H4 -> PAC EN PROCESO DE ELABORACION | U50: =+I21 -> 35683506804
T51: =+K4 -> PAC CANCELADOS Y/O DESIERTOS | U51: =+L21 -> 153166000
T52: =+N4 -> PAC ADJUDICADOS | U52: =+O21 -> 2704370683
